[Event "EYCC Open-U12 2019"]
[Site "Bratislava"]
[Date "2019.08.10"]
[Round "9.16"]
[White "Cnejev, Vladimir-Alexandru"]
[Black "Kanov, Nikola"]
[Result "1-0"]
[ECO "C70"]
[WhiteElo "1907"]
[BlackElo "1908"]
[Annotator "NA RC"]
[PlyCount "103"]
[EventDate "2019.08.02"]
[EventType "swiss"]
[EventCountry "SVK"]
[SourceTitle "playchess.com"]
[Source "ChessBase"]
[SourceQuality "1"]
[TimeControl "40/5400+30:1800+30"]

1. e4 {[%emt 0:01:58]} e5 {[%emt 0:00:00]} 2. Nf3 {[%emt 0:00:07]} Nc6 {[%emt 0:00:00]} 3. Bb5 {[%emt 0:00:12]} a6 {[%emt 0:00:00]} 4. Ba4 {[%emt 0:00:13]} Nge7 {[%emt 0:00:00]} 5. Nc3 {[%emt 0:00:22]} g6 {[%emt 0:00:54]} 6. d4 {[%emt 0:01:54]} exd4 {[%emt 0:02:37]} 7. Nd5 {[%emt 0:01:37]} Bg7 {[%emt 0:00:11]} 8. Bg5 {[%emt 0:00:06]} f6 {[%emt 0:01:05]} 9. Bxf6 {[%emt 0:15:36]} Bxf6 {[%emt 0:03:01]} 10. Nxf6+ {[%emt 0:02:12]} Kf7 {[%emt 0:00:52]} 11. Nd5 {[%emt 0:02:15]} Nxd5 {[%emt 0:03:28]} 12. Bb3 {[%emt 0:15:05]} d6 {[%emt 0:07:13]} 13. Bxd5+ {[%emt 0:00:36]} Kg7 {[%emt 0:00:18]} 14. Bxc6 {[%emt 0:01:20]} bxc6 {[%emt 0:00:02]} 15. Qxd4+ {[%emt 0:00:09]} Qf6 {[%emt 0:00:26]} 16. O-O {[%emt 0:02:19]} Qxd4 {[%emt 0:01:38]} 17. Nxd4 {[%emt 0:00:01]} c5 {[%emt 0:00:11]} 18. Ne2 {[%emt 0:00:37]} Re8 {[%emt 0:00:54]} 19. Nc3 {[%emt 0:00:08]} Bb7 {[%emt 0:00:35]} 20. Rfe1 {[%emt 0:00:21]} Kf7 {[%emt 0:03:24]} 21. f3 {[%emt 0:01:59]} Re5 {[%emt 0:02:35]} 22. Kf2 {[%emt 0:00:54]} Rae8 {[%emt 0:02:04]} 23. Re2 {[%emt 0:01:42]} R5e7 {[%emt 0:04:28]} 24. Rae1 {[%emt 0:01:50]} c6 {[%emt 0:03:52]} 25. Na4 {[%emt 0:02:34]} a5 {[%emt 0:01:52]} 26. Rd2 {[%emt 0:01:11]} d5 {[%emt 0:07:52]} 27. Nxc5 {[%emt 0:00:07]} dxe4 {[%emt 0:00:11]} 28. Rxe4 {[%emt 0:01:28]} Rxe4 {[%emt 0:00:21]} 29. Nxe4 {[%emt 0:00:06]} Re7 {[%emt 0:00:18]} 30. Rd6 {[%emt 0:02:48]} Rc7 {[%emt 0:00:53]} 31. Nc5 {[%emt 0:00:04]} Ke7 {[%emt 0:00:20]} 32. Rd4 {[%emt 0:00:11]} Bc8 {[%emt 0:00:21]} 33. Ra4 {[%emt 0:00:56]} Kd6 {[%emt 0:00:53]} 34. Ne4+ {[%emt 0:00:51]} Ke7 {[%emt 0:00:15]} 35. Rxa5 {[%emt 0:00:05]} Rd7 {[%emt 0:00:14]} 36. Ke2 {[%emt 0:00:51]} Rb7 {[%emt 0:00:18]} 37. Re5+ {[%emt 0:01:05]} Kd8 {[%emt 0:00:15]} 38. b3 {[%emt 0:00:09]} Ra7 {[%emt 0:00:13]} 39. a4 {[%emt 0:00:07]} Ba6+ {[%emt 0:00:08]} 40. Ke3 {[%emt 0:00:00]} Bf1 {[%emt 0:00:00]} 41. Kf2 {[%emt 0:00:40]} Ba6 {[%emt 0:00:25]} 42. Ra5 {[%emt 0:00:07]} Kc7 {[%emt 0:00:14]} 43. Nc5 {[%emt 0:00:06]} Kb6 {[%emt 0:00:05]} 44. Rxa6+ {[%emt 0:00:04]} Rxa6 {[%emt 0:00:03]} 45. Nxa6 {[%emt 0:00:06]} Kxa6 {[%emt 0:00:02]} 46. b4 {[%emt 0:00:07]} Kb6 {[%emt 0:00:04]} 47. c4 {[%emt 0:00:05]} Ka6 {[%emt 0:00:04]} 48. b5+ {[%emt 0:00:04]} cxb5 {[%emt 0:00:04]} 49. axb5+ {[%emt 0:00:11]} Kb6 {[%emt 0:00:04]} 50. g4 {[%emt 0:00:06]} g5 {[%emt 0:00:06]} 51. h4 {[%emt 0:00:10]} gxh4 {[%emt 0:00:08]} 52. f4 {[%emt 0:00:03]} 1-0

[Event "EYCC Open-U12 2019"]
[Site "Bratislava"]
[Date "2019.08.10"]
[Round "9.18"]
[White "Nastore, Pavel-Alexandru"]
[Black "Uritsky, Yonathan"]
[Result "1-0"]
[ECO "D85"]
[WhiteElo "2084"]
[BlackElo "2040"]
[Annotator "NA RC"]
[PlyCount "51"]
[EventDate "2019.08.02"]
[EventType "swiss"]
[EventCountry "SVK"]
[SourceTitle "playchess.com"]
[Source "ChessBase"]
[SourceQuality "1"]
[TimeControl "40/5400+30:1800+30"]

1. d4 {[%emt 0:00:00]} Nf6 {[%emt 0:00:00]} 2. c4 {[%emt 0:00:00]} g6 {[%emt 0:00:00]} 3. Nc3 {[%emt 0:00:00]} d5 {[%emt 0:00:20]} 4. cxd5 {[%emt 0:00:00]} Nxd5 {[%emt 0:00:17]} 5. e4 {[%emt 0:00:00]} Nxc3 {[%emt 0:00:13]} 6. bxc3 {[%emt 0:00:00]} Bg7 {[%emt 0:00:16]} 7. Nf3 {[%emt 0:00:00]} c5 {[%emt 0:00:16]} 8. Rb1 {[%emt 0:00:00]} O-O {[%emt 0:00:29]} 9. Be2 {[%emt 0:00:00]} Qa5 {[%emt 0:01:45]} 10. O-O Qxc3 11. Bd2 {[%emt 0:33:20]} Qa3 {[%emt 0:00:39]} 12. Qc2 {[%emt 0:04:17]} Na6 {[%emt 0:04:04]} 13. Rb3 {[%emt 0:00:41]} Qa4 {[%emt 0:12:43]} 14. Bb5 {[%emt 0:01:07]} Nb4 {[%emt 0:03:29]} 15. Qxc5 Qxa2 {[%emt 0:02:13]} 16. Qxb4 {[%emt 0:02:19]} a5 {[%emt 0:04:03]} 17. Qa3 {[%emt 0:01:12]} Qxa3 {[%emt 0:01:38]} 18. Rxa3 {[%emt 0:00:06]} b6 {[%emt 0:00:27]} 19. Bc6 {[%emt 0:00:19]} Ra7 {[%emt 0:01:11]} 20. Rb1 {[%emt 0:00:09]} Bg4 {[%emt 0:01:15]} 21. Ne5 {[%emt 0:00:43]} Bxe5 {[%emt 0:00:37]} 22. dxe5 {[%emt 0:00:08]} Rc8 {[%emt 0:00:41]} 23. Bb5 {[%emt 0:00:34]} Rc5 {[%emt 0:05:14]} 24. Be3 Rxe5 {[%emt 0:00:08]} 25. f3 {[%emt 0:03:12]} Bc8 {[%emt 0:00:45]} 26. Rd3 {[%emt 0:00:05]} 1-0

[Event "EYCC Open-U12 2019"]
[Site "Bratislava"]
[Date "2019.08.10"]
[Round "9.19"]
[White "Stevanovic, Jovan"]
[Black "Pavesi, Brando"]
[Result "1-0"]
[ECO "A13"]
[WhiteElo "1783"]
[BlackElo "2109"]
[Annotator "RC"]
[PlyCount "79"]
[EventDate "2019.08.02"]
[EventType "swiss"]
[EventCountry "SVK"]
[SourceTitle "playchess.com"]
[Source "ChessBase"]
[SourceQuality "1"]
[TimeControl "40/5400+30:1800+30"]

1. c4 {[%emt 0:00:00]} e6 {[%emt 0:01:04]} 2. g3 {[%emt 0:01:07]} d5 {[%emt 0:00:13]} 3. Bg2 {[%emt 0:00:04]} Nf6 {[%emt 0:00:07]} 4. Nf3 {[%emt 0:00:34]} dxc4 {[%emt 0:01:45]} 5. Qa4+ {[%emt 0:00:05]} c6 {[%emt 0:00:20]} 6. Qxc4 {[%emt 0:00:04]} b5 {[%emt 0:00:12]} 7. Qc2 {[%emt 0:00:53]} Bb7 {[%emt 0:02:31]} 8. O-O {[%emt 0:01:49]} Nbd7 {[%emt 0:01:55]} 9. d3 {[%emt 0:01:38]} c5 {[%emt 0:06:35]} 10. a4 {[%emt 0:08:35]} a6 {[%emt 0:05:47]} 11. Bd2 {[%emt 0:04:25]} Be7 {[%emt 0:02:59]} 12. axb5 {[%emt 0:06:38]} axb5 {[%emt 0:00:23]} 13. Nc3 {[%emt 0:00:45]} b4 {[%emt 0:08:34]} 14. Rxa8 {[%emt 0:00:19]} Qxa8 {[%emt 0:01:21]} 15. Nd1 {[%emt 0:00:07]} O-O {[%emt 0:16:25]} 16. Ne3 {[%emt 0:04:42]} Nb6 {[%emt 0:05:57]} 17. Rc1 {[%emt 0:15:46]} Rc8 {[%emt 0:05:54]} 18. Ne5 {[%emt 0:05:45]} Bxg2 {[%emt 0:04:23]} 19. Nxg2 {[%emt 0:01:17]} Nfd5 {[%emt 0:06:56]} 20. Nc4 {[%emt 0:03:16]} Qa2 {[%emt 0:08:40]} 21. Qb1 {[%emt 0:16:23]} b3 {[%emt 0:06:03]} 22. Qxa2 {[%emt 0:11:16]} bxa2 23. Ra1 Ra8 {[%emt 0:09:51]} 24. Na5 {[%emt 0:01:40]} Nb4 {[%emt 0:00:11]} 25. Bxb4 {[%emt 0:00:27]} cxb4 {[%emt 0:00:01]} 26. Rxa2 {[%emt 0:00:09]} Nd7 {[%emt 0:03:59]} 27. Ne3 {[%emt 0:02:51]} Bd8 {[%emt 0:00:45]} 28. Nec4 {[%emt 0:01:01]} Nc5 {[%emt 0:00:30]} 29. Ra1 {[%emt 0:00:25]} Bf6 {[%emt 0:00:22]} 30. Nb3 {[%emt 0:01:59]} Rxa1+ {[%emt 0:00:07]} 31. Nxa1 {[%emt 0:00:04]} Na4 {[%emt 0:00:30]} 32. Nc2 {[%emt 0:01:08]} b3 {[%emt 0:00:25]} 33. Na1 {[%emt 0:00:11]} Nxb2 {[%emt 0:00:12]} 34. Nxb2 {[%emt 0:00:04]} Bxb2 {[%emt 0:00:04]} 35. Nxb3 {[%emt 0:00:04]} Kf8 {[%emt 0:00:25]} 36. Kg2 {[%emt 0:00:18]} Ke7 {[%emt 0:00:04]} 37. Kf3 {[%emt 0:00:10]} Be5 {[%emt 0:00:30]} 38. Nd2 {[%emt 0:00:39]} f6 {[%emt 0:01:30]} 39. Nc4 {[%emt 0:00:16]} Bc7 {[%emt 0:00:19]} 40. d4 {[%emt 0:00:20]} 1-0

[Event "EYCC Open-U12 2019"]
[Site "Bratislava"]
[Date "2019.08.10"]
[Round "9.20"]
[White "Saveljev, Ivan"]
[Black "Stork, Christopher"]
[Result "1-0"]
[ECO "B40"]
[WhiteElo "2040"]
[BlackElo "1905"]
[Annotator "NA RC"]
[PlyCount "69"]
[EventDate "2019.08.02"]
[EventType "swiss"]
[EventCountry "SVK"]
[SourceTitle "playchess.com"]
[Source "ChessBase"]
[SourceQuality "1"]
[TimeControl "40/5400+30:1800+30"]

1. e4 {[%emt 0:00:00]} c5 {[%emt 0:00:00]} 2. Nf3 {[%emt 0:00:00]} e6 {[%emt 0:00:00]} 3. c3 {[%emt 0:00:00]} Nf6 {[%emt 0:00:47]} 4. e5 {[%emt 0:00:06]} Nd5 {[%emt 0:00:36]} 5. d4 {[%emt 0:00:16]} cxd4 {[%emt 0:00:40]} 6. cxd4 {[%emt 0:00:07]} d6 {[%emt 0:01:17]} 7. a3 {[%emt 0:00:41]} Bd7 {[%emt 0:01:12]} 8. Bd3 {[%emt 0:01:31]} Bc6 {[%emt 0:01:15]} 9. O-O {[%emt 0:02:56]} Nd7 {[%emt 0:01:26]} 10. b4 {[%emt 0:02:50]} a6 {[%emt 0:01:57]} 11. Re1 {[%emt 0:01:43]} Be7 {[%emt 0:02:26]} 12. Nbd2 {[%emt 0:09:48]} Nc3 {[%emt 0:04:52]} 13. Qb3 {[%emt 0:02:39]} Rc8 {[%emt 0:01:27]} 14. exd6 {[%emt 0:10:42]} Bxd6 {[%emt 0:00:47]} 15. Bc4 {[%emt 0:09:15]} Bxf3 {[%emt 0:02:08]} 16. Nxf3 {[%emt 0:00:44]} Nb6 {[%emt 0:02:45]} 17. Bd3 {[%emt 0:03:37]} O-O {[%emt 0:02:51]} 18. Bd2 {[%emt 0:04:31]} Ncd5 {[%emt 0:01:08]} 19. Be4 {[%emt 0:04:15]} Rc7 {[%emt 0:02:41]} 20. b5 {[%emt 0:10:49]} axb5 {[%emt 0:02:59]} 21. Ba5 {[%emt 0:02:19]} Rc6 {[%emt 0:01:30]} 22. Qxb5 {[%emt 0:01:59]} Bc7 {[%emt 0:03:45]} 23. Rac1 {[%emt 0:03:06]} Rxc1 {[%emt 0:04:02]} 24. Rxc1 {[%emt 0:00:57]} Qb8 {[%emt 0:03:21]} 25. Bxb6 {[%emt 0:04:14]} Nxb6 {[%emt 0:00:45]} 26. Bxh7+ {[%emt 0:00:51]} Kxh7 {[%emt 0:00:33]} 27. Qh5+ {[%emt 0:00:04]} Kg8 {[%emt 0:00:06]} 28. Ng5 {[%emt 0:00:06]} Rc8 {[%emt 0:00:56]} 29. Qxf7+ {[%emt 0:00:05]} Kh8 {[%emt 0:00:06]} 30. Qh5+ {[%emt 0:00:03]} Kg8 {[%emt 0:00:06]} 31. Qh7+ {[%emt 0:00:04]} Kf8 {[%emt 0:00:06]} 32. Qh8+ {[%emt 0:00:04]} Ke7 {[%emt 0:00:08]} 33. Qxg7+ {[%emt 0:00:05]} Kd8 {[%emt 0:01:41]} 34. Qf8+ {[%emt 0:00:08]} Kd7 {[%emt 0:00:14]} 35. Qf7+ {[%emt 0:00:11]} 1-0

[Event "EYCC Open-U12 2019"]
[Site "Bratislava"]
[Date "2019.08.10"]
[Round "9.22"]
[White "Guia, Artur Solovyov Eloy"]
[Black "Kamilov, Dmitry"]
[Result "1/2-1/2"]
[ECO "A01"]
[WhiteElo "1790"]
[BlackElo "1990"]
[Annotator "NA RC"]
[PlyCount "61"]
[EventDate "2019.08.02"]
[EventType "swiss"]
[EventCountry "SVK"]
[SourceTitle "playchess.com"]
[Source "ChessBase"]
[SourceQuality "1"]
[TimeControl "40/5400+30:1800+30"]

1. b3 {[%emt 0:00:00]} e5 {[%emt 0:00:14]} 2. Bb2 {[%emt 0:00:00]} Nc6 {[%emt 0:00:06]} 3. Nf3 {[%emt 0:00:00]} d6 {[%emt 0:00:32]} 4. e3 {[%emt 0:00:37]} Nf6 {[%emt 0:00:13]} 5. d4 {[%emt 0:08:11]} exd4 {[%emt 0:02:37]} 6. Nxd4 {[%emt 0:00:08]} Nxd4 {[%emt 0:00:37]} 7. Qxd4 {[%emt 0:00:10]} Bd7 {[%emt 0:01:21]} 8. Nc3 {[%emt 0:00:51]} Bc6 {[%emt 0:01:02]} 9. Bb5 {[%emt 0:02:19]} Qd7 {[%emt 0:00:52]} 10. Bxc6 {[%emt 0:04:06]} Qxc6 {[%emt 0:00:16]} 11. Qa4 {[%emt 0:00:10]} Qxa4 {[%emt 0:00:38]} 12. Nxa4 {[%emt 0:00:07]} Be7 {[%emt 0:00:30]} 13. O-O-O {[%emt 0:00:07]} O-O-O {[%emt 0:00:36]} 14. Rhe1 {[%emt 0:04:38]} Nd7 {[%emt 0:02:57]} 15. Nc3 {[%emt 0:00:34]} Bf6 {[%emt 0:00:54]} 16. Nd5 {[%emt 0:00:13]} Bxb2+ {[%emt 0:00:05]} 17. Kxb2 {[%emt 0:00:08]} Rhe8 {[%emt 0:00:19]} 18. e4 {[%emt 0:02:07]} Nb6 {[%emt 0:01:27]} 19. Nxb6+ {[%emt 0:00:07]} axb6 {[%emt 0:00:01]} 20. f3 {[%emt 0:00:16]} Re6 {[%emt 0:00:45]} 21. Rd5 {[%emt 0:00:25]} Rde8 {[%emt 0:00:30]} 22. Red1 {[%emt 0:00:59]} Kd7 {[%emt 0:09:13]} 23. Kc3 {[%emt 0:00:23]} Re5 {[%emt 0:00:55]} 24. Rxe5 {[%emt 0:00:32]} Rxe5 {[%emt 0:00:05]} 25. Rd5 {[%emt 0:03:29]} Rxd5 {[%emt 0:01:47]} 26. exd5 {[%emt 0:00:08]} Ke7 {[%emt 0:00:06]} 27. Kd4 {[%emt 0:00:06]} f5 {[%emt 0:00:43]} 28. f4 {[%emt 0:02:13]} Kf6 {[%emt 0:00:32]} 29. Ke3 {[%emt 0:07:04]} h6 {[%emt 0:07:27]} 30. c4 {[%emt 0:02:59]} Kg6 {[%emt 0:02:53]} 31. g3 {[%emt 0:01:19]} 1/2-1/2

[Event "EYCC Open-U12 2019"]
[Site "Bratislava"]
[Date "2019.08.10"]
[Round "9.23"]
[White "Chyndygyr, Tamerlan"]
[Black "Nemsadze, Daviti"]
[Result "0-1"]
[ECO "E73"]
[WhiteElo "2018"]
[BlackElo "1794"]
[Annotator "NA RC"]
[PlyCount "121"]
[EventDate "2019.08.02"]
[EventType "swiss"]
[EventCountry "SVK"]
[SourceTitle "playchess.com"]
[Source "ChessBase"]
[SourceQuality "1"]
[TimeControl "40/5400+30:1800+30"]

1. d4 {[%emt 0:00:00]} Nf6 {[%emt 0:00:00]} 2. c4 {[%emt 0:00:07]} g6 {[%emt 0:00:00]} 3. Nc3 {[%emt 0:00:13]} Bg7 {[%emt 0:00:00]} 4. e4 {[%emt 0:00:40]} O-O {[%emt 0:00:00]} 5. Be2 {[%emt 0:00:13]} d6 {[%emt 0:00:00]} 6. Bg5 {[%emt 0:00:15]} c5 {[%emt 0:00:08]} 7. d5 {[%emt 0:00:06]} a6 {[%emt 0:00:14]} 8. Nf3 {[%emt 0:00:28]} b5 {[%emt 0:00:24]} 9. cxb5 {[%emt 0:00:18]} axb5 {[%emt 0:00:04]} 10. Bxb5 {[%emt 0:00:06]} Qa5 {[%emt 0:03:37]} 11. Bd3 {[%emt 0:01:27]} Ba6 {[%emt 0:00:51]} 12. O-O {[%emt 0:00:34]} Nbd7 {[%emt 0:00:42]} 13. Bxa6 {[%emt 0:03:14]} Qxa6 {[%emt 0:01:09]} 14. Re1 {[%emt 0:00:27]} Rfb8 {[%emt 0:00:26]} 15. Qc2 {[%emt 0:00:49]} h6 {[%emt 0:03:02]} 16. Bf4 {[%emt 0:01:59]} g5 {[%emt 0:01:34]} 17. Bd2 {[%emt 0:01:27]} Nh5 {[%emt 0:05:03]} 18. Rad1 {[%emt 0:16:23]} Bf6 {[%emt 0:25:52]} 19. h3 {[%emt 0:05:31]} Nf4 20. Bxf4 {[%emt 0:12:44]} gxf4 {[%emt 0:23:35]} 21. e5 {[%emt 0:09:39]} Nxe5 {[%emt 0:00:44]} 22. Nxe5 {[%emt 0:01:51]} Bxe5 {[%emt 0:02:12]} 23. a3 {[%emt 0:05:48]} Qc4 {[%emt 0:05:26]} 24. Qd2 {[%emt 0:07:05]} Rb7 {[%emt 0:06:01]} 25. Rxe5 {[%emt 0:05:24]} dxe5 {[%emt 0:01:21]} 26. d6 {[%emt 0:00:04]} exd6 {[%emt 0:01:37]} 27. Qxd6 {[%emt 0:00:41]} Qe6 {[%emt 0:01:42]} 28. Qxc5 {[%emt 0:04:15]} Rc8 {[%emt 0:00:18]} 29. Qa5 {[%emt 0:00:15]} Rxb2 {[%emt 0:00:29]} 30. Ne4 {[%emt 0:00:37]} Re2 {[%emt 0:08:44]} 31. Qb4 {[%emt 0:04:32]} Qc6 {[%emt 0:01:56]} 32. Nd6 {[%emt 0:07:17]} Qc5 {[%emt 0:00:38]} 33. Rf1 {[%emt 0:03:12]} Qxb4 {[%emt 0:00:17]} 34. axb4 {[%emt 0:00:06]} Rc6 {[%emt 0:00:03]} 35. Nf5 {[%emt 0:00:19]} Rf6 {[%emt 0:01:01]} 36. Ne7+ {[%emt 0:00:08]} Kf8 {[%emt 0:00:03]} 37. Nd5 {[%emt 0:00:05]} Rd6 {[%emt 0:00:25]} 38. Nc3 {[%emt 0:00:06]} Rc2 {[%emt 0:00:27]} 39. Na4 {[%emt 0:00:34]} Rd4 {[%emt 0:00:14]} 40. Nc5 {[%emt 0:00:00]} Rcc4 {[%emt 0:00:00]} 41. Rb1 {[%emt 0:00:23]} Ke7 {[%emt 0:01:32]} 42. Na6 {[%emt 0:00:20]} Rd6 {[%emt 0:01:00]} 43. b5 {[%emt 0:00:19]} Rb6 {[%emt 0:00:03]} 44. Kf1 {[%emt 0:00:27]} Kf6 {[%emt 0:00:52]} 45. Ke2 {[%emt 0:00:16]} e4 {[%emt 0:00:23]} 46. Kd2 {[%emt 0:00:33]} Ke5 {[%emt 0:00:38]} 47. Nb4 {[%emt 0:00:30]} Kd6 {[%emt 0:00:29]} 48. Na6 {[%emt 0:00:12]} Kd5 {[%emt 0:02:40]} 49. Nb4+ {[%emt 0:00:45]} Kd4 {[%emt 0:00:40]} 50. Nc6+ {[%emt 0:02:09]} Kd5 {[%emt 0:00:59]} 51. Nb4+ {[%emt 0:00:20]} Kc5 {[%emt 0:00:10]} 52. Na6+ {[%emt 0:00:15]} Kd4 {[%emt 0:00:04]} 53. Rb3 {[%emt 0:00:49]} f5 {[%emt 0:01:34]} 54. h4 {[%emt 0:01:43]} h5 {[%emt 0:00:33]} 55. g3 {[%emt 0:00:29]} fxg3 56. fxg3 {[%emt 0:00:00]} Ra4 {[%emt 0:01:54]} 57. Nc7 Ra2+ {[%emt 0:00:07]} 58. Ke1 {[%emt 0:00:33]} Ra7 {[%emt 0:00:15]} 59. Rc3 {[%emt 0:01:24]} Kxc3 {[%emt 0:00:17]} 60. Nd5+ {[%emt 0:00:18]} Kd3 {[%emt 0:00:02]} 61. Nxb6 {[%emt 0:00:24]} 0-1

[Event "EYCC Open-U12 2019"]
[Site "Bratislava"]
[Date "2019.08.10"]
[Round "9.25"]
[White "Dovbnia, Nikita"]
[Black "Celik, Hasan Huseyin"]
[Result "0-1"]
[ECO "E97"]
[WhiteElo "1777"]
[BlackElo "1903"]
[Annotator "NA RC"]
[PlyCount "80"]
[EventDate "2019.08.02"]
[EventType "swiss"]
[EventCountry "SVK"]
[SourceTitle "playchess.com"]
[Source "ChessBase"]
[SourceQuality "1"]
[TimeControl "40/5400+30:1800+30"]

1. d4 {[%emt 0:00:00]} Nf6 {[%emt 0:00:00]} 2. c4 {[%emt 0:00:00]} g6 {[%emt 0:00:00]} 3. Nc3 {[%emt 0:00:12]} Bg7 {[%emt 0:00:00]} 4. e4 {[%emt 0:00:35]} d6 {[%emt 0:00:06]} 5. Nf3 {[%emt 0:00:08]} O-O {[%emt 0:00:07]} 6. Be2 {[%emt 0:00:10]} e5 {[%emt 0:00:08]} 7. O-O {[%emt 0:00:16]} Nc6 {[%emt 0:00:09]} 8. d5 {[%emt 0:00:10]} Ne7 {[%emt 0:00:06]} 9. b4 {[%emt 0:00:06]} a5 {[%emt 0:00:13]} 10. Ba3 {[%emt 0:03:57]} axb4 {[%emt 0:00:21]} 11. Bxb4 {[%emt 0:00:01]} Nd7 {[%emt 0:00:01]} 12. Nd2 {[%emt 0:13:17]} f5 {[%emt 0:02:46]} 13. Nb3 {[%emt 0:03:20]} Nf6 {[%emt 0:05:45]} 14. Qd3 {[%emt 0:09:23]} fxe4 {[%emt 0:19:59]} 15. Nxe4 {[%emt 0:01:45]} Nxe4 {[%emt 0:00:19]} 16. Qxe4 {[%emt 0:00:08]} Rf4 {[%emt 0:00:15]} 17. Qc2 {[%emt 0:07:57]} Bf5 {[%emt 0:01:58]} 18. Qd2 {[%emt 0:03:27]} Bg4 {[%emt 0:06:35]} 19. Bxg4 {[%emt 0:02:30]} Rxg4 {[%emt 0:00:58]} 20. Qe2 {[%emt 0:00:37]} Qd7 {[%emt 0:02:49]} 21. f3 {[%emt 0:06:37]} Rf4 {[%emt 0:00:38]} 22. Bd2 {[%emt 0:01:38]} Rf7 {[%emt 0:00:28]} 23. Bc3 {[%emt 0:04:21]} Nf5 {[%emt 0:03:10]} 24. Qd3 {[%emt 0:05:39]} Ra3 {[%emt 0:05:58]} 25. Bb2 {[%emt 0:04:11]} Ra4 {[%emt 0:01:36]} 26. Bc3 {[%emt 0:08:17]} c5 {[%emt 0:06:29]} 27. Nd2 {[%emt 0:04:21]} Bh6 {[%emt 0:02:02]} 28. Ne4 {[%emt 0:03:01]} Ra3 {[%emt 0:04:09]} 29. Rfb1 {[%emt 0:03:39]} Qa4 {[%emt 0:02:33]} 30. Rb5 {[%emt 0:06:06]} Be3+ {[%emt 0:08:46]} 31. Kh1 {[%emt 0:01:15]} Bd4 {[%emt 0:00:08]} 32. Rab1 {[%emt 0:02:07]} Rxa2 {[%emt 0:01:23]} 33. Bxd4 {[%emt 0:01:24]} exd4 {[%emt 0:00:34]} 34. R5b3 {[%emt 0:03:13]} Re7 {[%emt 0:03:21]} 35. g3 {[%emt 0:01:32]} Ra1 {[%emt 0:08:09]} 36. Nf6+ {[%emt 0:01:58]} Kg7 {[%emt 0:00:26]} 37. Ne4 {[%emt 0:00:05]} Ne3 {[%emt 0:00:41]} 38. Nxd6 {[%emt 0:01:00]} Qa2 {[%emt 0:00:11]} 39. R3b2 {[%emt 0:00:07]} Qxb2 {[%emt 0:00:09]} 40. Rxa1 {[%emt 0:00:00]} Qg2# {[%emt 0:00:00]} 0-1

[Event "EYCC Open-U12 2019"]
[Site "Bratislava"]
[Date "2019.08.10"]
[Round "9.27"]
[White "Palczert, Matyas"]
[Black "Valiyev, Shahin"]
[Result "1-0"]
[ECO "B90"]
[WhiteElo "2065"]
[BlackElo "1830"]
[Annotator "NA RC"]
[PlyCount "33"]
[EventDate "2019.08.02"]
[EventType "swiss"]
[EventCountry "SVK"]
[SourceTitle "playchess.com"]
[Source "ChessBase"]
[SourceQuality "1"]
[TimeControl "40/5400+30:1800+30"]

1. e4 {[%emt 0:00:00]} c5 {[%emt 0:00:00]} 2. Nf3 {[%emt 0:00:00]} d6 {[%emt 0:00:00]} 3. d4 {[%emt 0:00:00]} cxd4 {[%emt 0:00:00]} 4. Nxd4 {[%emt 0:00:00]} Nf6 {[%emt 0:00:00]} 5. Nc3 {[%emt 0:00:00]} a6 {[%emt 0:00:00]} 6. Nb3 {[%emt 0:00:08]} Nc6 {[%emt 0:02:39]} 7. Be3 {[%emt 0:00:41]} e6 {[%emt 0:00:19]} 8. g4 {[%emt 0:00:55]} b5 {[%emt 0:00:30]} 9. g5 {[%emt 0:02:34]} Nd7 {[%emt 0:00:20]} 10. Bg2 {[%emt 0:01:57]} Bb7 {[%emt 0:00:30]} 11. O-O {[%emt 0:01:24]} Be7 {[%emt 0:08:38]} 12. f4 {[%emt 0:01:36]} Rc8 {[%emt 0:04:35]} 13. Nd4 {[%emt 0:06:54]} Na5 {[%emt 0:04:16]} 14. f5 {[%emt 0:04:37]} e5 {[%emt 0:00:30]} 15. Ne6 {[%emt 0:03:49]} fxe6 {[%emt 0:00:25]} 16. Qh5+ {[%emt 0:00:17]} Kf8 {[%emt 0:01:45]} 17. fxe6+ {[%emt 0:00:15]} 1-0

[Event "EYCC Open-U12 2019"]
[Site "Bratislava"]
[Date "2019.08.10"]
[Round "9.28"]
[White "Tunsjo, Axel"]
[Black "De Reese, Elias"]
[Result "1-0"]
[ECO "B07"]
[WhiteElo "2039"]
[BlackElo "1850"]
[Annotator "NA RC"]
[PlyCount "67"]
[EventDate "2019.08.02"]
[EventType "swiss"]
[EventCountry "SVK"]
[SourceTitle "playchess.com"]
[Source "ChessBase"]
[SourceQuality "1"]
[TimeControl "40/5400+30:1800+30"]

1. e4 {[%emt 0:00:00]} d6 {[%emt 0:00:00]} 2. d4 {[%emt 0:00:00]} Nf6 {[%emt 0:00:00]} 3. Nc3 {[%emt 0:00:00]} Nbd7 {[%emt 0:00:00]} 4. Nf3 {[%emt 0:01:01]} e5 {[%emt 0:00:00]} 5. Bg5 {[%emt 0:01:49]} Be7 {[%emt 0:01:39]} 6. Qd2 {[%emt 0:01:07]} h6 {[%emt 0:01:48]} 7. Bxf6 {[%emt 0:08:43]} Bxf6 {[%emt 0:00:33]} 8. O-O-O {[%emt 0:00:06]} exd4 {[%emt 0:08:24]} 9. Nxd4 {[%emt 0:01:28]} Nc5 {[%emt 0:00:24]} 10. Be2 {[%emt 0:03:53]} O-O {[%emt 0:04:28]} 11. f4 {[%emt 0:00:56]} Ne6 {[%emt 0:02:12]} 12. Nxe6 {[%emt 0:07:54]} Bxe6 {[%emt 0:01:22]} 13. Kb1 {[%emt 0:00:01]} Rb8 {[%emt 0:05:11]} 14. g4 {[%emt 0:01:23]} b5 {[%emt 0:02:51]} 15. Qe3 {[%emt 0:07:46]} Qe8 {[%emt 0:12:37]} 16. h4 {[%emt 0:03:29]} c5 {[%emt 0:07:06]} 17. Rxd6 {[%emt 0:04:24]} Bd4 {[%emt 0:02:39]} 18. Qd2 {[%emt 0:01:15]} Qe7 {[%emt 0:03:18]} 19. e5 {[%emt 0:02:22]} Qb7 {[%emt 0:01:09]} 20. Rd1 {[%emt 0:02:38]} Qg2 {[%emt 0:08:32]} 21. Nxb5 {[%emt 0:09:05]} Bxb2 {[%emt 0:04:21]} 22. Kxb2 {[%emt 0:01:27]} c4 {[%emt 0:01:21]} 23. a4 {[%emt 0:03:57]} Qb7 {[%emt 0:07:50]} 24. f5 {[%emt 0:01:33]} a6 {[%emt 0:01:22]} 25. fxe6 {[%emt 0:00:08]} axb5 {[%emt 0:00:30]} 26. exf7+ {[%emt 0:00:04]} Qxf7 {[%emt 0:00:45]} 27. Qd5 {[%emt 0:00:35]} bxa4+ {[%emt 0:01:27]} 28. Kc3 {[%emt 0:00:54]} Qxd5 {[%emt 0:00:27]} 29. R6xd5 {[%emt 0:00:21]} Rbc8 {[%emt 0:01:27]} 30. Ra5 {[%emt 0:02:24]} Rf4 {[%emt 0:00:51]} 31. Rd4 {[%emt 0:00:22]} Rxd4 {[%emt 0:00:52]} 32. Kxd4 {[%emt 0:00:01]} Rd8+ {[%emt 0:00:10]} 33. Kc3 {[%emt 0:00:50]} Rc8 {[%emt 0:00:42]} 34. Rxa4 1-0